fUSD/lending_fUSD_20250820
["ID","MTS","AMOUNT","RATE_DAILY","PERIOD"]
[380336172,1755694239803,-462.198119,0.00011,2]
[380336173,1755694239812,-151.0,0.00011,2]
[380336174,1755694239822,-151.0,0.00011,2]
[380336175,1755694239832,-151.0,0.00011,2]
[380336176,1755694239842,-151.0,0.00011,2]
[380336177,1755694239851,-153.78218,0.00011,2]
[380336178,1755694239861,-151.0,0.00011,2]
[380336179,1755694239871,-151.0,0.00011,2]
[380336180,1755694239880,-151.0,0.00011,2]
[380336181,1755694239891,-151.0,0.00011,2]
[380336182,1755694239901,-282.67769,0.00011,2]
[380336183,1755694239911,-282.67769,0.00011,2]
[380336184,1755694239920,-282.67769,0.00011,2]
[380336185,1755694239930,-1670.917246,0.00011,2]
[380336186,1755694239940,-282.67769,0.00011,2]
[380336187,1755694239949,-1670.917246,0.00011,2]
[380336188,1755694239959,-151.0,0.00011,2]
[380336189,1755694239968,-1670.917246,0.00011,2]
[380336190,1755694239977,-151.0,0.00011,2]
[380336191,1755694239986,-1670.917246,0.00011,2]
[380336192,1755694239996,-151.0,0.00011,2]
[380336193,1755694240005,-151.0,0.00011,2]
[380336194,1755694240014,-151.0,0.00011,2]
[380336195,1755694240024,-186.049325,0.00011,2]
[380336196,1755694240034,-151.0,0.00011,2]
[380336197,1755694240043,-151.0,0.00011,2]
[380336198,1755694240052,-151.0,0.00011,2]
[380336199,1755694240061,-151.0,0.00011,2]
[380336200,1755694240071,-329.066521,0.00011,2]
[380336201,1755694240081,-151.0,0.00011,2]
[380336202,1755694240090,-417.804054,0.00011,2]
[380336203,1755694240099,-151.0,0.00011,2]
[380336204,1755694240109,-522.91624,0.00011,2]
[380336205,1755694240118,-151.0,0.00011,2]
[380336206,1755694240128,-151.0,0.00011,2]
[380336207,1755694240137,-173.839743,0.00011,2]
[380336208,1755694240147,-329.066521,0.00011,2]
[380336209,1755694240156,-417.804054,0.00011,2]
[380336210,1755694240165,-151.0,0.00011,2]
[380336211,1755694240174,-151.0,0.00011,2]
[380336212,1755694240183,-522.91624,0.00011,2]
[380336213,1755694240193,-151.0,0.00011,2]
[380336214,1755694240202,-173.839743,0.00011,2]
[380336215,1755694240211,-151.0,0.00011,2]
[380336216,1755694240220,-329.066521,0.00011,2]
[380336217,1755694240230,-151.0,0.00011,2]
[380336218,1755694240239,-417.804054,0.00011,2]
[380336219,1755694240249,-522.91624,0.00011,2]
[380336220,1755694240258,-173.839743,0.00011,2]
[380336221,1755694240267,-417.804054,0.00011,2]
[380336222,1755694240277,-329.066521,0.00011,2]
[380336223,1755694240286,-151.0,0.00011,2]
[380336224,1755694240296,-522.91624,0.00011,2]
[380336225,1755694240305,-173.839743,0.00011,2]
[380336226,1755694240315,-151.0,0.00011052,2]
[380336227,1755694240325,-9286.6334409,0.00011099,2]
[380336228,1755694240335,-250.0,0.00011188,2]
[380336229,1755694240344,-500.0,0.00011273,2]
[380336230,1755694240354,-247.0,0.00011451,2]
[380336231,1755694240363,-1515.0,0.0001146,2]
[380336232,1755694240373,-420.0,0.0001146,2]
[380336233,1755694240382,-960.0,0.00011465,2]
[380336234,1755694240392,-250.0,0.00011466,2]
[380336235,1755694240401,-300.0,0.00011466,2]
[380336236,1755694240410,-2751.0,0.00011507,2]
[380336237,1755694240420,-1000.0,0.00011521,2]
[380336238,1755694240429,-500.0,0.00011547,2]
[380336239,1755694240439,-1000.0,0.00011641,2]
[380336240,1755694240448,-611.9051778,0.00011653,2]
[380336241,1755694240457,-9286.63344084,0.00011674,2]
[380336242,1755694240466,-32431.3,0.00011711,2]
[380336243,1755694240476,-155.0,0.00011753,2]
[380336244,1755694240485,-458.46930693,0.00011753,2]
[380336245,1755694240495,-843.97594471,0.00011753,2]
[380336246,1755694240504,-160.0,0.00011754,2]
[380336247,1755694240513,-1500.0,0.0001178,2]
[380336248,1755694240522,-3000.0,0.0001178,2]
[380336249,1755694240532,-2800.0,0.0001178,2]
[380336250,1755694240541,-8039.26,0.000118,2]
[380336251,1755694240550,-500.0,0.00011821,2]
[380336252,1755694240559,-153.0,0.00011845,2]
[380336253,1755694240569,-500.0,0.000119,2]
[380336254,1755694240579,-386.17,0.00011959,2]
[380336255,1755694240588,-255.0,0.00012037,2]
[380336256,1755694240601,-1503.89816877,0.00012068,2]
[380336257,1755694240610,-500.0,0.00012095,2]
[380336258,1755694240620,-772.15820929,0.00012342,2]
[380336259,1755694240630,-287.61899177,0.00012356,2]
[380336260,1755694240641,-500.0,0.00012369,2]
[380336261,1755694240652,-1000.0,0.00012448,2]
[380336262,1755694240663,-9286.63344084,0.00012449,2]
[380336263,1755694240673,-587.0,0.00012601,2]
[380336264,1755694240687,-500.0,0.00012643,2]
[380336265,1755694240697,-666.0,0.00012899,2]
[380336266,1755694240706,-155883.04,0.000129,2]
[380336267,1755694240716,-500.0,0.00012917,2]
[380336268,1755694240726,-1000.0,0.00012935,2]
[380336269,1755694240735,-1500.0,0.00012996,2]
[380336270,1755694240744,-1798.19965,0.00013,2]
[380336271,1755694240753,-151.0,0.00013046,2]
[380336272,1755694240763,-151.0,0.00013105,2]
[380336273,1755694240772,-1500.0,0.0001315,2]
[380336274,1755694240782,-3000.0,0.0001315,2]
[380336275,1755694240792,-2800.0,0.0001315,2]
[380336276,1755694240801,-162.0,0.00013178,3]
[380336277,1755694240810,-433.0,0.0001318,2]
[380336278,1755694240820,-2029.0,0.00013186,2]
[380336279,1755694240829,-3371.0,0.00013186,2]
[380336280,1755694240839,-904.0,0.00013186,2]
[380336281,1755694240848,-1255.0,0.00013186,2]
[380336282,1755694240858,-1297.0,0.00013186,2]
[380336283,1755694240867,-599.0,0.00013186,2]
[380336284,1755694240878,-1331.752,0.00013186,2]
[380336285,1755694240887,-717.0,0.00013186,2]
[380336286,1755694240896,-21500.0,0.00013186,2]
[380336287,1755694240906,-195.542,0.00013186,2]
[380336288,1755694241294,-195.622,0.00013186,2]
[380336289,1755694241304,-4152.0,0.00013186,2]
[380336290,1755694241313,-6090.0,0.00013186,2]
[380336291,1755694241323,-203.243,0.00013186,2]
[380336292,1755694241332,-198.053,0.00013186,2]
[380336293,1755694241341,-500.0,0.00013191,2]
[380336294,1755694241351,-9286.63344084,0.00013224,2]
[380336295,1755694241360,-497.03,0.00013279,2]
[380336296,1755694241369,-386.17,0.00013288,2]
[380336297,1755694241378,-151.0,0.00013347,2]
[380336298,1755694241388,-611.90517779,0.00013361,2]
[380336299,1755694241397,-150.94,0.00013425,2]
[380336300,1755694241406,-151.0,0.00013427,2]
[380336301,1755694241415,-500.0,0.00013465,2]
[380336302,1755694241425,-1303.55957022,0.00013544,2]
[380336303,1755694241434,-8039.26,0.000136,2]
[380336304,1755694241443,-151.0,0.000136,2]
[380336305,1755694241452,-151.0,0.000136,2]
[380336306,1755694241461,-151.0,0.000136,2]
[380336307,1755694241470,-151.0,0.000136,2]
[380336308,1755694241480,-151.0,0.00013656,2]
[380336309,1755694241491,-1068.84867507,0.00013698,2]
[380336310,1755694241500,-150.0,0.00013698,2]
[380336311,1755694241510,-900.0,0.00013699,2]
[380336312,1755694241521,-900.0,0.00013699,2]
[380336313,1755694241531,-900.0,0.00013699,2]
[380336314,1755694241541,-900.0,0.00013699,2]
[380336315,1755694241550,-900.0,0.00013699,2]
[380336316,1755694241559,-900.0,0.00013699,2]
[380336317,1755694241569,-900.0,0.00013699,2]
[380336318,1755694241578,-900.0,0.00013699,2]
[380336319,1755694241588,-900.0,0.00013699,2]
[380336320,1755694241598,-900.0,0.00013699,2]
[380336321,1755694241610,-900.0,0.00013699,2]
[380336322,1755694241619,-900.0,0.00013699,2]
[380336323,1755694241629,-900.0,0.00013699,2]
[380336324,1755694241640,-900.0,0.00013699,2]
[380336325,1755694241652,-900.0,0.00013699,2]
[380336326,1755694241661,-900.0,0.00013699,2]
[380336327,1755694241671,-1000.0,0.00013699,2]
[380336328,1755694241680,-587.58,0.00013699,2]
[380336329,1755694241690,-429.057805,0.00013699,2]
[380336330,1755694241699,-429.057805,0.00013699,2]
[380336331,1755694241708,-429.057805,0.00013699,2]
[380336332,1755694241717,-429.057805,0.00013699,2]
[380336333,1755694241726,-1000.0,0.00013699,2]
[380336334,1755694241735,-1000.0,0.00013699,2]
[380336335,1755694241745,-1000.0,0.00013699,2]
[380336336,1755694241754,-200.0,0.00013699,2]
[380336337,1755694241764,-447.943688,0.00013699,2]
[380336338,1755694241773,-447.943688,0.00013699,2]
[380336339,1755694241784,-447.943688,0.00013699,2]
[380336340,1755694241794,-447.943688,0.00013699,2]
[380336341,1755694241803,-13727.11,0.00013699,2]
[380336342,1755694241813,-2595.25,0.00013699,2]
[380336343,1755694241822,-29999.99,0.00013699,2]
[380336344,1755694241831,-151.0,0.00013699,2]
[380336345,1755694241841,-151.0,0.00013699,2]
[380336346,1755694241851,-151.0,0.00013699,2]
[380336347,1755694241860,-151.0,0.00013699,2]
[380336348,1755694241869,-151.0,0.00013699,2]
[380336349,1755694241879,-151.0,0.00013699,2]
[380336350,1755694241888,-151.0,0.00013699,2]
[380336351,1755694241898,-151.0,0.00013699,2]
[380336352,1755694241907,-151.0,0.00013699,2]
[380336353,1755694241917,-151.0,0.00013699,2]
[380336354,1755694241927,-228.642886,0.00013699,2]
[380336355,1755694241936,-151.0,0.00013699,2]
[380336356,1755694241945,-228.642886,0.00013699,2]
[380336357,1755694241954,-151.0,0.00013699,2]
[380336358,1755694241964,-228.642886,0.00013699,2]
[380336359,1755694241973,-151.0,0.00013699,2]
[380336360,1755694241982,-151.0,0.00013699,2]
[380336361,1755694241992,-151.0,0.00013699,2]
[380336362,1755694242003,-151.0,0.00013699,2]
[380336363,1755694242013,-151.0,0.00013699,2]
[380336364,1755694242023,-151.0,0.00013699,2]
[380336365,1755694242033,-151.0,0.00013699,2]
[380336366,1755694242043,-151.0,0.00013699,2]
[380336367,1755694242053,-151.0,0.00013699,2]
[380336368,1755694242064,-151.0,0.00013699,2]
[380336369,1755694242075,-151.0,0.00013699,2]
[380336370,1755694242085,-159.637317,0.00013699,2]
[380336371,1755694242096,-151.0,0.00013699,2]
[380336372,1755694242114,-299.778001,0.00013699,2]
[380336373,1755694242126,-299.778001,0.00013699,2]
[380336374,1755694242136,-151.0,0.00013699,2]
[380336375,1755694242146,-299.778001,0.00013699,2]
[380336376,1755694242156,-151.0,0.00013699,2]
[380336377,1755694242165,-299.778001,0.00013699,2]
[380336378,1755694242175,-151.0,0.00013699,2]
[380336379,1755694242185,-151.0,0.00013699,2]
[380336380,1755694242194,-228.642886,0.00013699,2]
[380336381,1755694242204,-151.0,0.00013699,2]
[380336382,1755694242213,-151.0,0.00013699,2]
[380336383,1755694242223,-151.0,0.00013699,2]
[380336384,1755694242232,-151.0,0.00013699,2]
[380336385,1755694242241,-151.0,0.00013699,2]
[380336386,1755694242251,-462.198119,0.00013699,2]
[380336387,1755694242260,-462.198119,0.00013699,2]
[380336388,1755694242270,-462.198119,0.00013699,2]
[380336389,1755694242279,-151.0,0.00013699,2]
[380336390,1755694242288,-151.0,0.00013699,2]
[380336391,1755694242298,-462.198119,0.00013699,2]
[380336392,1755694242308,-151.0,0.00013699,2]
[380336393,1755694242317,-151.0,0.00013699,2]
[380336394,1755694242327,-151.0,0.00013699,2]
[380336395,1755694242336,-167.746567,0.00013699,2]
[380336396,1755694242345,-151.0,0.00013699,2]
[380336397,1755694242354,-151.0,0.00013699,2]
[380336398,1755694242363,-151.0,0.00013699,2]
[380336399,1755694242372,-282.67769,0.00013699,2]
[380336400,1755694242382,-447.943688,0.00013699,2]
[380336401,1755694242391,-282.67769,0.00013699,2]
[380336402,1755694242400,-282.67769,0.00013699,2]
[380336403,1755694242409,-447.943688,0.00013699,2]
[380336404,1755694242418,-1670.917246,0.00013699,2]
[380336405,1755694242428,-282.67769,0.00013699,2]
[380336406,1755694242437,-1670.917246,0.00013699,2]
[380336407,1755694242446,-447.943688,0.00013699,2]
[380336409,1755694242455,-151.0,0.00013699,2]
[380336411,1755694242465,-1670.917246,0.00013699,2]
[380336412,1755694242474,-447.943688,0.00013699,2]
[380336413,1755694242484,-151.0,0.00013699,2]
[380336414,1755694242494,-1670.917246,0.00013699,2]
[380336415,1755694242503,-151.0,0.00013699,2]
[380336416,1755694242512,-151.0,0.00013699,2]
[380336417,1755694242521,-151.0,0.00013699,2]
[380336418,1755694242531,-151.0,0.00013699,2]
[380336419,1755694242541,-151.0,0.00013699,2]
[380336420,1755694242550,-151.0,0.00013699,2]
[380336421,1755694242559,-151.0,0.00013699,2]
[380336422,1755694242568,-329.066521,0.00013699,2]
[380336423,1755694242577,-151.0,0.00013699,2]
[380336425,1755694242587,-417.804054,0.00013699,2]
[380336427,1755694242597,-151.0,0.00013699,2]
[380336430,1755694242610,-522.91624,0.00013699,2]
[380336432,1755694242620,-151.0,0.00013699,2]
[380336434,1755694242629,-173.839743,0.00013699,2]
[380336435,1755694242638,-417.804054,0.00013699,2]
[380336437,1755694242649,-151.0,0.00013699,2]
[380336439,1755694242658,-329.066521,0.00013699,2]
[380336441,1755694242668,-522.91624,0.00013699,2]
[380336442,1755694242677,-173.839743,0.00013699,2]
[380336443,1755694242687,-329.066521,0.00013699,2]
[380336444,1755694242696,-151.0,0.00013699,2]
[380336445,1755694242705,-417.804054,0.00013699,2]
[380336446,1755694242714,-522.91624,0.00013699,2]
[380336447,1755694242723,-173.839743,0.00013699,2]
[380336448,1755694242732,-417.804054,0.00013699,2]
[380336449,1755694242742,-329.066521,0.00013699,2]
[380336450,1755694242751,-522.91624,0.00013699,2]
[380336451,1755694242760,-173.839743,0.00013699,2]
[380336452,1755694242770,-298.26089446,0.00013725,2]
[380336453,1755694242779,-500.0,0.00013739,2]
[380336454,1755694242788,-165.38,0.00013773,2]
[380336455,1755694242798,-151.0,0.00013809,2]
[380336456,1755694242807,-151.0,0.00013809,2]
[380336457,1755694242816,-151.0,0.00013809,2]
[380336458,1755694242825,-299.71958,0.00013809,2]
[380336459,1755694242835,-153.412608,0.00013809,2]
[380336460,1755694242844,-151.0,0.00013809,2]
[380336461,1755694242854,-151.0,0.00013809,2]
[380336462,1755694242863,-151.0,0.00013809,2]
[380336463,1755694242872,-200.051188,0.00013809,2]
[380336464,1755694242881,-151.0,0.00013809,2]
[380336465,1755694242891,-151.0,0.00013809,2]
[380336466,1755694242900,-151.0,0.00013809,2]
[380336467,1755694242909,-151.0,0.00013809,2]
[380336468,1755694242919,-823.0,0.00013855,2]
[380336469,1755694242929,-9286.63344084,0.00013999,2]
[380336470,1755694242938,-500.0,0.00014013,2]
[380336471,1755694242948,-151.0,0.00014056,2]
[380336472,1755694242957,-170.456396,0.00014056,2]
[380336473,1755694242967,-151.0,0.00014056,2]
[380336474,1755694242976,-151.0,0.00014056,2]
[380336475,1755694242985,-151.0,0.00014056,2]
[380336476,1755694242994,-151.0,0.00014056,2]
[380336477,1755694243003,-151.0,0.00014056,2]
[380336478,1755694243013,-151.0,0.00014056,2]
[380336479,1755694243022,-188.92662,0.00014056,2]
[380336480,1755694243032,-151.0,0.00014056,2]
[380336481,1755694243041,-151.0,0.00014056,2]
[380336482,1755694243050,-209.05851,0.00014056,2]
[380336483,1755694243059,-151.0,0.00014056,2]
[380336484,1755694243069,-151.0,0.00014056,2]
[380336485,1755694243078,-151.0,0.00014056,2]
[380336486,1755694243087,-151.0,0.00014056,2]
[380336487,1755694243097,-151.0,0.00014056,2]
[380336488,1755694243106,-151.0,0.00014056,2]
[380336489,1755694243116,-151.0,0.00014056,2]
[380336491,1755694243125,-837.127411,0.00014056,2]
[380336492,1755694243135,-151.0,0.00014056,2]
[380336493,1755694243144,-153.718925,0.00014056,2]
[380336494,1755694243154,-1730.511004,0.00014056,2]
[380336495,1755694243163,-151.0,0.00014056,2]
[380336496,1755694243173,-566.981125,0.00014056,2]
[380336497,1755694243182,-1730.511004,0.00014056,2]
[380336498,1755694243191,-566.981125,0.00014056,2]
[380336499,1755694243201,-1730.511004,0.00014056,2]
[380336501,1755694243211,-566.981125,0.00014056,2]
[380336502,1755694243220,-1730.511004,0.00014056,2]
[380336504,1755694243230,-566.981125,0.00014056,2]
[380336506,1755694243239,-174.938114,0.00014056,2]
[380336508,1755694243249,-174.938114,0.00014056,2]
[380336510,1755694243258,-837.127411,0.00014056,2]
[380336512,1755694243268,-174.938114,0.00014056,2]
[380336515,1755694243279,-165.983633,0.00014056,2]
[380336516,1755694243290,-174.938114,0.00014056,2]
[380336518,1755694243299,-165.983633,0.00014056,2]
[380336519,1755694243309,-837.127411,0.00014056,2]
[380336520,1755694243319,-165.983633,0.00014056,2]
[380336521,1755694243328,-837.127411,0.00014056,2]
[380336522,1755694243338,-165.983633,0.00014056,2]
[380336523,1755694243347,-151.0,0.00014056,2]
[380336524,1755694243356,-151.0,0.00014056,2]
[380336525,1755694243367,-151.488793,0.00014056,2]
[380336526,1755694243376,-1000.0,0.00014228,2]
[380336527,1755694243386,-500.0,0.00014287,2]
[380336528,1755694243395,-587.58,0.00014384,2]
[380336529,1755694243404,-320.0,0.00014433,2]
[380336530,1755694243413,-1598.8317,0.00014519,2]
[380336531,1755694243423,-151.0,0.0001452,2]
[380336532,1755694243432,-152.516993,0.0001452,2]
[380336533,1755694243443,-151.0,0.0001452,2]
[380336534,1755694243452,-151.0,0.0001452,2]
[380336535,1755694243461,-151.0,0.0001452,2]
[380336536,1755694243470,-151.0,0.0001452,2]
[380336537,1755694243480,-151.0,0.0001452,2]
[380336538,1755694243490,-151.0,0.0001452,2]
[380336539,1755694243499,-151.0,0.0001452,2]
[380336540,1755694243509,-151.32211,0.0001452,2]
[380336541,1755694243518,-174.220456,0.0001452,2]
[380336542,1755694243527,-151.0,0.0001452,2]
[380336543,1755694243538,-151.0,0.0001452,2]
[380336544,1755694243547,-151.0,0.0001452,2]
[380336545,1755694243556,-151.0,0.0001452,2]
[380336546,1755694243565,-175.940212,0.0001452,2]
[380336547,1755694243574,-151.0,0.0001452,2]
[380336548,1755694243583,-175.940212,0.0001452,2]
[380336549,1755694243593,-175.940212,0.0001452,2]
[380336550,1755694243606,-175.940212,0.0001452,2]
[380336551,1755694243616,-151.0,0.0001452,2]
[380336552,1755694243626,-151.0,0.0001452,2]
[380336553,1755694243635,-151.0,0.0001452,2]
[380336554,1755694243645,-197.062797,0.0001452,2]
[380336555,1755694243655,-4055.682228,0.0001452,2]
[380336556,1755694243664,-253.144668,0.0001452,2]
[380336557,1755694243673,-4055.682228,0.0001452,2]
[380336558,1755694243683,-151.0,0.0001452,2]
[380336559,1755694243694,-253.144668,0.0001452,2]
[380336560,1755694243703,-4055.682228,0.0001452,2]
[380336561,1755694243713,-151.0,0.0001452,2]
[380336562,1755694243723,-253.144668,0.0001452,2]
[380336563,1755694243733,-4055.682228,0.0001452,2]
[380336564,1755694243742,-253.144668,0.0001452,2]
[380336565,1755694243751,-151.0,0.0001452,2]
[380336566,1755694243761,-151.0,0.0001452,2]
[380336567,1755694243770,-151.0,0.0001452,2]
[380336568,1755694243782,-151.0,0.0001452,2]
[380336569,1755694243791,-1500.0,0.0001452,2]
[380336570,1755694243800,-3000.0,0.0001452,2]
[380336571,1755694243810,-2800.0,0.0001452,2]
[380336572,1755694243820,-500.0,0.00014561,2]
[380336573,1755694243830,-159.27380131,0.00014566,2]
[380336574,1755694243839,-386.17,0.00014617,2]
[380336575,1755694243849,-424.31958871,0.00014699,2]
[380336576,1755694243858,-155883.04,0.000147,2]
[380336577,1755694243869,-449.7,0.00014703,2]
[380336578,1755694243878,-4040.23714109,0.00014748,2]
[380336579,1755694243888,-1000.0,0.00014756,2]
[380336580,1755694243898,-9286.63344084,0.00014775,2]
[380336581,1755694243908,-500.0,0.00014781,2]
[380336582,1755694243918,-3526.1756789,0.00014815,2]
[380336583,1755694243928,-500.0,0.00014822,2]
[380336584,1755694243937,-298.1558981,0.00014835,2]
[380336585,1755694243947,-151.0,0.000149,2]
[380336586,1755694243956,-282.995256,0.000149,2]
[380336587,1755694243966,-282.995256,0.000149,2]
[380336588,1755694243975,-282.995256,0.000149,2]
[380336589,1755694243985,-429.057805,0.000149,2]
[380336590,1755694243995,-429.057805,0.000149,2]
[380336591,1755694244004,-282.995256,0.000149,2]
[380336592,1755694244013,-218.794615,0.000149,2]
[380336593,1755694244023,-429.057805,0.000149,2]
[380336594,1755694244033,-429.057805,0.000149,2]
[380336595,1755694244042,-218.794615,0.000149,2]
[380336596,1755694244051,-151.0,0.000149,2]
[380336597,1755694244061,-218.794615,0.000149,2]
[380336598,1755694244070,-151.0,0.000149,2]
[380336599,1755694244080,-218.794615,0.000149,2]
[380336600,1755694244090,-151.0,0.000149,2]
[380336601,1755694244099,-151.0,0.000149,2]
[380336602,1755694244109,-151.0,0.000149,2]
[380336603,1755694244119,-386.333156,0.000149,2]
[380336604,1755694244128,-386.333156,0.000149,2]
[380336605,1755694244138,-386.333156,0.000149,2]
[380336606,1755694244147,-386.333156,0.000149,2]
[380336607,1755694244156,-151.0,0.000149,2]
[380336608,1755694244166,-550.03864,0.000149,2]
[380336609,1755694244175,-151.0,0.000149,2]
[380336610,1755694244184,-550.03864,0.000149,2]
[380336611,1755694244193,-550.03864,0.000149,2]
[380336612,1755694244203,-159.860561,0.000149,2]
[380336613,1755694244212,-550.03864,0.000149,2]
[380336614,1755694244222,-159.860561,0.000149,2]
[380336615,1755694244231,-159.860561,0.000149,2]
[380336616,1755694244241,-159.860561,0.000149,2]
[380336617,1755694244251,-281.268074,0.000149,2]
[380336618,1755694244260,-151.0,0.000149,2]
[380336619,1755694244270,-151.0,0.000149,2]
[380336620,1755694244280,-281.268074,0.000149,2]
[380336621,1755694244289,-151.0,0.000149,2]
[380336622,1755694244299,-151.0,0.000149,2]
[380336623,1755694244309,-281.268074,0.000149,2]
[380336624,1755694244318,-151.0,0.000149,2]
[380336625,1755694244328,-151.0,0.000149,2]
[380336626,1755694244338,-281.268074,0.000149,2]
[380336627,1755694244348,-151.0,0.000149,2]
[380336628,1755694244358,-151.0,0.000149,2]
[380336629,1755694244368,-151.0,0.000149,2]
[380336630,1755694244378,-151.0,0.000149,2]
[380336631,1755694244395,-151.0,0.000149,2]
[380336632,1755694244405,-700.201196,0.000149,2]
[380336633,1755694244415,-293.88981,0.000149,2]
[380336634,1755694244425,-700.201196,0.000149,2]
[380336635,1755694244434,-700.201196,0.000149,2]
[380336636,1755694244444,-700.201196,0.000149,2]
[380336637,1755694244453,-151.0,0.000149,2]
[380336638,1755694244462,-151.0,0.000149,2]
[380336639,1755694244472,-151.0,0.000149,2]
[380336640,1755694244483,-151.0,0.000149,2]
[380336641,1755694244492,-151.0,0.000149,2]
[380336642,1755694244501,-151.0,0.000149,2]
[380336643,1755694244511,-151.0,0.000149,2]
[380336644,1755694244520,-151.0,0.000149,2]
[380336645,1755694244529,-151.0,0.000149,2]
[380336646,1755694244538,-151.0,0.000149,2]
[380336647,1755694244548,-151.0,0.000149,2]
[380336648,1755694244558,-151.0,0.000149,2]
[380336649,1755694244567,-151.0,0.000149,2]
[380336650,1755694244576,-151.0,0.000149,2]
[380336651,1755694244585,-151.0,0.000149,2]
[380336652,1755694244595,-221.78247594,0.000149,2]
[380336653,1755694244609,-221.78247592,0.000149,2]
[380336654,1755694244618,-221.78247592,0.000149,2]
[380336655,1755694244628,-250.0,0.00015,2]
[380336656,1755694244638,-1798.19964,0.00015,2]
[380336657,1755694244647,-201.76200709,0.00015,2]
[380336658,1755694244656,-202.36947965,0.00015,2]
[380336659,1755694244665,-200.0,0.00015,2]
[380336660,1755694244677,-150.0,0.00015,2]
[380336661,1755694244686,-150.0,0.00015,2]
[380336662,1755694244695,-200.0,0.00015,2]
[380336663,1755694244705,-150.0,0.00015,2]
[380336664,1755694244714,-150.0,0.00015,2]
[380336665,1755694244723,-500.0,0.00015,2]
[380336666,1755694244734,-150.0,0.00015,2]
[380336667,1755694244744,-66482.2218189,0.00015,2]
[380336668,1755694244754,-500.0,0.00015,2]
[380336669,1755694244764,-428.0,0.00015,2]
[380336670,1755694244773,-150.0,0.00015,2]
[380336671,1755694244784,-500.0,0.00015,2]
[380336672,1755694244794,-158.44741976,0.00015,2]
[380336673,1755694244804,-587.58,0.00015068,2]
[380336674,1755694244813,-300.0,0.00015068,2]
[380336675,1755694244822,-611.90517779,0.00015069,2]
[380336676,1755694244831,-309.29654756,0.00015094,2]
[380336677,1755694244840,-1152.0,0.00015234,2]
[380336678,1755694244849,-150.0,0.00015274,2]
[380336679,1755694244859,-150.0,0.00015274,2]
[380336680,1755694244868,-150.0,0.00015274,2]
[380336681,1755694244878,-500.0,0.00015274,2]
[380336682,1755694244887,-150.0,0.00015274,2]
[380336683,1755694244897,-500.0,0.00015274,2]
[380336684,1755694244906,-428.0,0.00015274,2]
[380336685,1755694244915,-150.0,0.00015274,2]
[380336686,1755694244925,-556.0,0.00015274,2]
[380336687,1755694244935,-8039.26,0.000153,2]
[380336688,1755694244944,-1000.0,0.00015522,2]
[380336689,1755694244953,-150.0,0.00015548,2]
[380336690,1755694244963,-150.0,0.00015548,2]
[380336691,1755694244972,-250.0,0.00015548,2]
[380336692,1755694244981,-334.0,0.00015548,2]